bitfinex-derivatives/quotes_SOLF0:USTF0_20241227
["timestamp","ask_amount","ask_price","bid_price","bid_amount"]
[1735328656955,10.72156576,187.06,186.95,7.90223758]
[1735328657155,7.90223758,187.05,186.98,7.90223758]
[1735328657356,10.72156576,187.06,187.0,7.90223758]
[1735328657557,7.90223758,187.06,187.0,7.90223758]
[1735328657755,2.677,187.03,186.99,3.14]
[1735328661262,2.6771,187.02,186.99,3.14]
[1735328661664,7.90223758,187.04,186.99,3.14]
[1735328661865,2.6774,187.0,186.99,3.14]
[1735328662063,10.57963758,187.0,186.99,3.14]
[1735328663258,7.90223758,187.0,186.92,7.90223758]
[1735328663458,7.90223758,186.97,186.93,3.14]
[1735328664464,2.6781,186.95,186.93,3.14]
[1735328668063,7.90223758,186.97,186.93,3.14]
[1735328668269,2.678,186.96,186.93,3.14]
[1735328669567,1.5366,187.04,186.93,3.14]
[1735328669761,7.90223758,187.03,186.96,7.90223758]
[1735328670566,2.6772,187.01,186.96,7.90223758]
[1735328670870,7.90223758,187.03,186.96,7.90223758]
[1735328672463,7.90223758,186.99,186.91,2.6786]
[1735328672664,7.90223758,186.99,186.93,7.90223758]
[1735328673269,2.6779,186.97,186.93,7.90223758]
[1735328674069,7.90223758,186.99,186.94,3.14]
[1735328674372,2.678,186.96,186.94,3.14]
[1735328674563,7.90223758,186.99,186.94,3.14]
[1735328674766,2.6781,186.95,186.94,3.14]
[1735328675961,7.90223758,186.95,186.94,3.14]
[1735328677371,10.58033758,186.95,186.94,3.14]
[1735328678064,10.58033758,186.95,186.88,12.28279038]
[1735328678261,7.90223758,186.95,186.89,3.14]
[1735328679575,2.6784,186.93,186.89,3.14]
[1735328681872,2.6784,186.93,186.89,11.04223758]
[1735328683471,7.90223758,186.95,186.89,11.04223758]
[1735328683673,2.6783,186.94,186.91,7.90223758]
[1735328684071,7.90223758,186.97,186.91,7.90223758]
[1735328684273,2.6778,186.97,186.92,2.6784]
[1735328684576,12.23826745,187.04,186.93,7.90223758]
[1735328684773,7.90223758,187.0,186.94,3.14]
[1735328684968,2.6778,186.98,186.94,3.14]
[1735328685370,2.6778,186.98,186.94,5.8182]
[1735328685965,2.6778,186.98,186.94,3.14]
[1735328687572,3.1377,187.05,186.97,7.90223758]
[1735328687573,7.90223758,187.03,186.97,7.90223758]
[1735328688167,2.6773,187.01,186.97,7.90223758]
[1735328688367,7.90223758,187.01,186.95,1.5227]
[1735328688570,7.90223758,187.01,186.94,3.14]
[1735328688773,2.6777,186.98,186.94,3.14]
[1735328691176,2.6778,186.97,186.94,3.14]
[1735328695284,2.6778,186.97,186.93,10.58063758]
[1735328695479,2.6778,186.97,186.94,3.14]
[1735328697978,7.90223758,186.99,186.94,3.14]
[1735328698175,2.6781,186.95,186.94,3.14]
[1735328699677,7.90223758,187.0,186.94,3.14]
[1735328700686,2.678,186.96,186.94,3.14]
[1735328703683,7.90223758,187.04,186.94,11.04223758]
[1735328703888,7.90223758,187.04,186.94,3.14]
[1735328704083,2.6771,187.02,186.97,10.57993758]
[1735328704385,2.6771,187.02,186.97,7.90223758]
[1735328705083,2.6771,187.02,186.98,2.6776]
[1735328705391,7.90223758,187.05,186.99,3.14]
[1735328705585,7.90223758,187.05,186.99,5.8175]
[1735328706486,2.677,187.03,186.99,5.8175]
[1735328707091,2.6768,187.04,186.99,5.8175]
[1735328707687,2.6768,187.04,186.99,13.71973758]
[1735328708989,2.677,187.03,186.99,13.71973758]
[1735328709284,7.90223758,187.05,186.99,13.71973758]
[1735328710494,2.6768,187.04,186.99,13.71973758]
[1735328712196,2.6768,187.04,187.0,2.6773]
[1735328712398,2.6766,187.06,187.01,7.90223758]
[1735328713390,2.6766,187.06,187.02,2.677]
[1735328714391,10.71124988,187.14,187.03,7.90223758]
[1735328714592,7.90223758,187.11,187.05,7.90223758]
[1735328715095,7.90223758,187.11,187.05,10.57873758]
[1735328715990,2.676,187.1,187.05,7.90223758]
[1735328716486,2.6753,187.15,187.1,2.6759]
[1735328716689,10.68884936,187.16,187.11,3.14]
[1735328716990,7.90223758,187.17,187.11,3.14]
[1735328717192,2.6751,187.16,187.11,3.14]
[1735328717491,22.31226829,187.19,187.11,11.04223758]
[1735328717697,2.6748,187.18,187.12,2.6757]
[1735328718397,7.90223758,187.17,187.11,3.14]
[1735328718597,7.90223758,187.15,187.11,3.14]
[1735328719499,2.6755,187.14,187.11,3.14]
[1735328720299,7.90223758,187.15,187.11,3.14]
[1735328720594,2.6757,187.13,187.11,3.14]
[1735328721493,2.6757,187.13,187.09,7.90223758]
[1735328721698,2.6757,187.13,187.1,3.14]
[1735328721898,2.676,187.1,187.05,7.4543]
[1735328722093,2.676,187.1,187.06,11.04223758]
[1735328722597,2.676,187.1,187.06,13.71873758]
[1735328722996,2.6762,187.08,187.06,3.14]
[1735328723198,7.90223758,187.1,187.07,3.14]
[1735328723692,7.90223758,187.08,187.07,3.14]
[1735328723898,7.90223758,187.08,187.06,3.14]
[1735328724095,7.90223758,187.07,187.06,3.14]
[1735328724298,10.57863758,187.07,187.06,3.14]
[1735328725090,7.72806093,187.17,187.06,3.14]
[1735328725290,2.6762,187.09,187.06,3.14]
[1735328727895,7.90223758,187.11,187.06,3.14]
[1735328728097,2.6763,187.08,187.06,3.14]
[1735328728897,7.90223758,187.1,187.07,3.12]
[1735328729103,7.90223758,187.08,187.07,3.12]
[1735328729503,10.57843758,187.08,187.07,3.12]
[1735328730401,2.6762,187.08,187.07,3.12]
[1735328733596,10.57843758,187.08,187.07,3.12]
[1735328733793,7.90223758,187.08,187.05,3.12]
[1735328733994,7.90223758,187.06,187.05,3.12]
[1735328734195,2.6772,187.01,187.0,55.64]
[1735328734393,2.6772,187.01,187.0,58.76]
[1735328734599,2.6772,187.01,187.0,3.12]
[1735328735099,7.90223758,187.03,186.97,7.90223758]
[1735328735302,2.6775,187.0,186.98,3.12]
[1735328735695,7.90223758,187.03,186.98,3.12]
[1735328736503,2.6773,187.01,186.98,3.12]
[1735328737205,7.90223758,187.03,186.98,3.12]
[1735328737404,2.6774,187.0,186.98,3.12]
[1735328739600,18.56103888,187.11,186.99,7.90223758]
[1735328739904,18.56103888,187.11,187.04,7.90223758]
[1735328739905,7.90223758,187.11,187.04,7.90223758]
[1735328740104,2.6763,187.08,187.05,3.14]
[1735328740302,7.90223758,187.11,187.05,3.14]
[1735328740603,64.19788211,187.14,187.05,3.14]
[1735328740604,7.90223758,187.09,187.05,3.14]
[1735328741203,7.90223758,187.11,187.05,3.14]
[1735328742103,2.6763,187.08,187.05,3.14]
[1735328742498,7.90223758,187.11,187.05,3.14]
[1735328743705,2.6764,187.08,187.05,3.14]
[1735328744805,7.90223758,187.11,187.05,3.14]
[1735328745006,7.90223758,187.09,187.05,3.14]
[1735328745502,2.6765,187.06,187.05,3.14]
[1735328746099,2.6765,187.06,187.04,7.90223758]
[1735328746302,2.6765,187.06,187.05,3.14]
[1735328759520,2.6765,187.06,187.05,3.12]
[1735328761715,2.6761,187.09,187.05,3.12]
[1735328761922,7.90223758,187.11,187.05,3.12]
[1735328762422,3.1157,187.14,187.06,7.90223758]
[1735328762623,7.90223758,187.13,187.06,7.90223758]
[1735328762920,7.90223758,187.13,187.07,3.12]
[1735328763121,2.6761,187.1,187.07,3.12]
[1735328763325,7.90223758,187.13,187.07,5.7964]
[1735328764010,2.6759,187.11,187.07,5.7964]
[1735328764215,2.6759,187.11,187.07,3.12]
[1735328764614,2.6761,187.09,187.08,3.12]
[1735328766323,10.57833758,187.09,187.08,3.12]
[1735328766525,2.6761,187.09,187.08,3.12]
[1735328767322,7.90223758,187.13,187.08,3.12]
[1735328767525,7.90223758,187.11,187.08,3.12]
[1735328767825,7.90223758,187.12,187.08,3.12]
[1735328768923,2.6759,187.11,187.08,3.12]
[1735328769927,2.676,187.1,187.08,3.12]
[1735328770630,2.676,187.1,187.06,7.90223758]
[1735328770819,2.676,187.1,187.07,3.12]
[1735328773026,10.69403063,187.17,187.07,3.12]
[1735328773230,10.69403063,187.17,187.12,7.90223758]
[1735328773531,22.31226829,187.18,187.13,3.12]
[1735328774223,2.6752,187.16,187.13,3.12]
[1735328774432,7.90223758,187.2,187.13,3.12]
[1735328774630,2.6753,187.15,187.13,3.12]
[1735328774829,7.90223758,187.18,187.14,3.12]
[1735328775928,2.6753,187.15,187.14,3.12]
[1735328776826,7.90223758,187.16,187.14,3.12]
[1735328777026,7.90223758,187.16,187.14,0.5939]
[1735328777431,2.6753,187.15,187.14,0.5939]
[1735328777828,1.587,187.19,187.13,3.12]
[1735328778029,23.89926829,187.19,187.13,3.12]
[1735328778233,2.6754,187.14,187.13,3.12]
[1735328781129,2.6759,187.11,187.08,7.90223758]
[1735328781326,7.90223758,187.16,187.1,7.90223758]
[1735328781629,2.6755,187.14,187.1,7.90223758]
[1735328781830,2.6755,187.14,187.09,3.12]
[1735328781831,2.6755,187.14,187.12,7.90223758]
[1735328782824,7.90223758,187.18,187.12,7.90223758]
[1735328783132,7.90223758,187.18,187.1,7.90223758]
[1735328784433,7.90223758,187.17,187.1,7.90223758]
[1735328785227,2.6753,187.15,187.1,7.90223758]
[1735328785537,7.90223758,187.17,187.1,7.90223758]
[1735328786432,2.6756,187.13,187.1,7.90223758]
[1735328789338,2.6757,187.12,187.1,7.90223758]
[1735328789939,2.6752,187.16,187.11,3.12]
[1735328790136,7.90223758,187.17,187.12,3.12]
[1735328790336,7.90223758,187.17,187.13,3.12]
[1735328790535,2.6754,187.14,187.13,3.12]
[1735328791738,7.90223758,187.17,187.13,3.12]
[1735328793443,2.6753,187.15,187.13,3.12]
[1735328794543,2.6754,187.14,187.13,3.12]
[1735328798841,2.6762,187.1,187.08,7.90223758]
[1735328799036,2.6762,187.1,187.09,3.12]
[1735328807242,7.90223758,187.11,187.05,63.52223758]
[1735328807446,7.90223758,187.11,187.06,3.12]
[1735328808144,2.6767,187.06,187.05,55.62]
[1735328808346,2.6767,187.06,187.05,58.74]
[1735328808551,2.6767,187.06,187.02,9.48533758]
[1735328808744,7.90223758,187.07,187.01,7.90223758]
[1735328808943,22.48150877,187.15,187.02,3.12]
[1735328809148,7.90223758,187.1,187.03,7.90223758]
[1735328809349,2.6765,187.08,187.03,7.90223758]
[1735328809545,2.6765,187.08,187.05,7.90223758]
[1735328810152,7.90223758,187.1,187.05,7.90223758]
[1735328810356,2.6766,187.07,187.05,7.90223758]
[1735328811945,2.6764,187.09,187.05,7.90223758]
[1735328812750,7.90223758,187.06,186.97,7.43115482]
[1735328812950,7.90223758,187.02,186.98,3.12]
[1735328813451,2.6777,186.99,186.98,3.12]
[1735328821168,2.6775,187.01,186.98,3.12]
[1735328822166,2.6775,187.01,186.98,11.02223758]
[1735328824066,2.6776,187.0,186.98,11.02223758]
[1735328824968,2.6776,187.0,186.99,3.12]
[1735328827766,1.6829,187.08,186.99,3.12]
[1735328827966,2.6774,187.02,186.99,3.12]
[1735328828964,7.90223758,187.06,186.99,3.12]
[1735328829270,2.6775,187.01,186.99,3.12]
[1735328830069,2.6776,187.0,186.99,3.12]
[1735328831566,2.6775,187.01,186.99,3.12]
[1735328835773,7.90223758,187.08,187.0,7.90223758]
[1735328835979,7.90223758,187.1,187.04,7.90223758]
[1735328836276,10.71019516,187.13,187.08,7.90223758]
[1735328836679,30.22985852,187.14,187.08,7.90223758]
[1735328836874,7.90223758,187.14,187.08,7.90223758]
[1735328837579,2.6761,187.11,187.08,7.90223758]
[1735328837773,7.90223758,187.14,187.08,7.90223758]
[1735328837980,22.32762094,187.16,187.1,7.90223758]
[1735328837981,2.6756,187.15,187.1,7.90223758]
[1735328838180,2.6756,187.15,187.11,3.12]
[1735328839381,2.6756,187.15,187.12,7.90223758]
[1735328840381,7.90223758,187.18,187.12,7.90223758]
[1735328841174,7.90223758,187.16,187.11,3.12]
[1735328841783,2.6759,187.12,187.11,3.12]
[1735328844682,3.2075,187.2,187.11,3.12]
[1735328844683,7.90223758,187.14,187.11,3.12]
[1735328846580,2.676,187.12,187.11,3.12]
[1735328847987,2.676,187.12,187.01,1.6477]
[1735328847988,2.6763,187.1,187.06,7.90223758]
[1735328848182,7.90223758,187.12,187.07,3.12]
[1735328848685,7.90223758,187.12,187.06,7.90223758]
[1735328848888,7.90223758,187.12,187.08,3.12]
[1735328850085,2.6763,187.1,187.08,3.12]
[1735328851385,7.90223758,187.14,187.08,11.02223758]
[1735328851579,2.676,187.12,187.08,11.02223758]
[1735328851784,7.90223758,187.14,187.08,11.02223758]
[1735328852592,2.676,187.12,187.08,11.02223758]
[1735328853588,7.90223758,187.14,187.08,11.02223758]
[1735328853791,2.676,187.11,187.08,11.02223758]
[1735328855090,2.6759,187.12,187.08,11.02223758]
[1735328857088,2.6761,187.11,187.08,11.02223758]
[1735328859490,7.90223758,187.16,187.08,11.02223758]
[1735328859785,7.90223758,187.18,187.12,7.90223758]
[1735328859990,7.90223758,187.18,187.13,3.12]
[1735328860791,2.6755,187.15,187.13,3.12]
[1735328864797,7.90223758,187.18,187.13,3.12]
[1735328864995,2.6756,187.14,187.13,3.12]
[1735328869695,2.6752,187.17,187.13,3.12]
[1735328869997,7.90223758,187.18,187.13,3.12]
[1735328870202,2.6754,187.16,187.13,3.12]
[1735328870397,7.90223758,187.18,187.13,3.12]
[1735328871799,2.6754,187.16,187.13,3.12]
[1735328874101,7.90223758,187.19,187.13,3.12]
[1735328874102,2.6755,187.15,187.13,3.12]
[1735328877301,7.90223758,187.19,187.13,3.12]
[1735328877501,2.6756,187.14,187.13,3.12]
[1735328878900,2.6758,187.13,187.1,7.90223758]
[1735328879103,7.90223758,187.17,187.11,3.12]
[1735328879506,2.6763,187.1,187.04,58.59275458]
[1735328879699,2.6763,187.1,187.08,7.90223758]
[1735328879901,7.90223758,187.15,187.08,7.90223758]
[1735328880803,2.6763,187.09,187.08,7.90223758]
[1735328881005,7.90223758,187.13,187.06,7.90223758]
[1735328881204,2.6764,187.08,187.07,3.12]
[1735328881502,2.6764,187.08,187.04,58.59275458]
[1735328881503,14.98628573,187.2,187.04,58.59275458]
[1735328881706,2.6769,187.05,187.04,58.59275458]
[1735328882006,2.6769,187.05,187.04,61.71275458]
[1735328882202,2.6769,187.05,187.04,55.62]
[1735328882407,2.6769,187.05,187.04,3.12]
[1735328882605,10.57913758,187.05,187.04,3.12]
[1735328885409,7.90223758,187.05,186.99,7.90223758]
[1735328885611,2.6773,187.03,187.0,3.12]
[1735328886306,7.90223758,187.05,187.0,3.12]
[1735328886504,2.6773,187.02,187.0,3.12]
[1735328887803,7.90223758,187.05,187.0,3.12]
[1735328888007,2.6775,187.01,187.0,3.12]
[1735328890914,2.6773,187.03,187.0,3.12]
[1735328891103,7.90223758,187.09,187.01,7.90223758]
[1735328891306,3.2138,187.13,187.07,7.90223758]
[1735328891608,2.6761,187.11,187.08,3.12]
[1735328892412,2.6759,187.13,187.09,7.90223758]
[1735328892608,22.32762094,187.17,187.11,7.90223758]
[1735328892811,69.0572601,187.18,187.11,7.90223758]
[1735328892812,9.51693758,187.18,187.11,7.90223758]
[1735328893008,7.90223758,187.18,187.11,7.90223758]
[1735328893510,7.90223758,187.2,187.13,7.90223758]
[1735328893710,7.90223758,187.2,187.14,3.12]
[1735328894407,2.6751,187.18,187.14,3.12]
[1735328894905,7.90223758,187.2,187.14,3.12]
[1735328896007,10.57713758,187.2,187.15,7.90223758]
[1735328896311,2.6749,187.2,187.15,7.90223758]
[1735328898813,10.51416148,187.22,187.15,7.90223758]
[1735328899009,2.6749,187.19,187.15,7.90223758]
[1735328900213,2.6749,187.19,187.16,3.12]
[1735328901311,10.57653758,187.23,187.17,10.57743758]
[1735328901512,7.90223758,187.23,187.17,7.90223758]
[1735328901908,2.6746,187.21,187.17,7.90223758]
[1735328903018,7.90223758,187.23,187.17,7.90223758]
[1735328903314,2.675,187.19,187.16,3.12]
[1735328904613,7.90223758,187.19,187.17,3.12]
[1735328905209,2.675,187.18,187.17,3.12]
[1735328909516,7.90223758,187.21,187.17,3.12]
[1735328909816,2.6749,187.19,187.17,3.12]
[1735328911214,2.675,187.18,187.17,3.12]
[1735328912710,2.6752,187.17,187.13,7.90223758]
[1735328912916,2.6752,187.17,187.14,3.12]
[1735328914214,2.6752,187.17,187.15,11.02223758]
[1735328914420,7.90223758,187.21,187.15,11.02223758]
[1735328916019,2.675,187.18,187.15,11.02223758]
[1735328919116,7.90223758,187.21,187.15,11.02223758]
[1735328919423,2.6752,187.18,187.15,11.02223758]
[1735328924612,7.90223758,187.22,187.15,11.02223758]
[1735328924613,1.5985,187.29,187.17,7.90223758]
[1735328924823,1.5985,187.29,187.2,7.90223758]
[1735328925030,7.90223758,187.27,187.21,3.12]
[1735328926629,2.6744,187.23,187.21,3.12]
[1735328926825,7.90223758,187.25,187.21,3.12]
[1735328928430,2.6745,187.22,187.21,3.12]
[1735328936338,1.5985,187.29,187.21,3.12]
[1735328936539,2.6743,187.24,187.21,3.12]
[1735328936730,7.90223758,187.28,187.21,3.12]
[1735328936929,7.90223758,187.26,187.21,3.12]
[1735328937541,7.90223758,187.28,187.21,3.12]
[1735328937742,2.6743,187.24,187.21,3.12]
[1735328938039,7.90223758,187.28,187.22,7.90223758]
[1735328938241,2.674,187.26,187.22,7.90223758]
[1735328939031,7.90223758,187.3,187.22,7.90223758]
[1735328939240,2.6738,187.27,187.22,7.90223758]
[1735328939645,7.90223758,187.3,187.22,7.90223758]
[1735328939939,2.674,187.26,187.22,7.90223758]
[1735328940132,2.674,187.26,187.21,5.7945]
[1735328940133,10.67129772,187.33,187.26,2.6739]
[1735328940331,10.67129772,187.33,187.27,11.02223758]
[1735328940541,2.6733,187.31,187.27,11.02223758]
[1735328940735,7.90223758,187.32,187.27,3.12]
[1735328940940,7.90223758,187.3,187.27,3.12]
[1735328941140,2.6736,187.28,187.27,3.12]
[1735328942036,10.57583758,187.28,187.27,3.12]
[1735328942538,2.6736,187.28,187.27,3.12]
[1735328947538,2.6742,187.24,187.23,7.90223758]
[1735328947747,2.6742,187.24,187.23,3.12]
[1735328951145,7.90223758,187.27,187.2,7.90223758]
[1735328951446,2.6745,187.22,187.21,3.12]
[1735328951836,2.6748,187.2,187.19,2.96351348]
[1735328952039,2.6748,187.2,187.19,6.08351348]
[1735328953048,2.6748,187.2,187.19,3.12]
[1735328953245,2.6752,187.18,187.16,9.47713758]
[1735328953441,7.90223758,187.23,187.16,7.90223758]
[1735328953747,7.90223758,187.21,187.17,3.12]
[1735328954449,2.6751,187.18,187.17,3.12]
[1735328959951,1.5801,187.26,187.17,3.12]
[1735328960156,9.48233758,187.26,187.19,7.90223758]
[1735328962056,1.5801,187.26,187.19,7.90223758]
[1735328962253,7.90223758,187.25,187.19,7.90223758]
[1735328963259,2.6745,187.23,187.19,7.90223758]
[1735328963461,7.90223758,187.25,187.19,7.90223758]
[1735328964151,2.6746,187.22,187.19,7.90223758]
[1735328966758,2.6747,187.21,187.19,7.90223758]
[1735328967058,7.90223758,187.21,187.2,3.12]
[1735328967856,7.90223758,187.21,187.13,7.90223758]
[1735328968158,7.90223758,187.19,187.13,7.90223758]
[1735328968351,7.90223758,187.19,187.14,3.12]
[1735328968856,2.6756,187.15,187.13,7.90223758]
[1735328969057,2.6756,187.15,187.14,3.12]
[1735328971354,2.6756,187.15,187.13,7.90223758]
[1735328971550,2.6756,187.15,187.14,3.12]
[1735328973864,7.90223758,187.19,187.13,7.90223758]
[1735328974065,2.6756,187.14,187.13,7.90223758]
[1735328974262,2.6756,187.14,187.13,3.12]
[1735328974768,2.6762,187.11,187.08,63.52223758]
[1735328974964,7.90223758,187.15,187.09,3.12]
[1735328975660,7.90223758,187.15,187.08,63.52223758]
[1735328975865,7.90223758,187.13,187.09,3.12]
[1735328976265,7.90223758,187.11,187.09,3.12]
[1735328976467,2.6762,187.1,187.09,3.12]
[1735328976764,7.90223758,187.11,187.01,7.90223758]
[1735328977069,7.90223758,187.07,187.02,3.12]
[1735328977468,2.6771,187.04,187.02,3.12]
[1735328977669,7.90223758,187.07,187.02,3.12]
[1735328979570,2.6771,187.04,187.02,3.12]
[1735328980173,7.90223758,187.09,187.02,13.69953758]
[1735328980367,7.90223758,187.09,187.04,7.90223758]
[1735328980768,10.57863758,187.09,187.04,7.90223758]
[1735328982268,2.6765,187.08,187.04,7.90223758]
[1735328984474,7.90223758,187.11,187.04,7.90223758]
[1735328984673,2.6766,187.07,187.04,7.90223758]
[1735328987070,2.6765,187.09,187.04,7.90223758]
[1735328987267,2.6765,187.09,187.04,10.57933758]
[1735328988375,7.90223758,187.11,187.06,7.90223758]
[1735328988567,7.90223758,187.13,187.07,3.12]
[1735328989567,2.6761,187.11,187.07,3.12]
[1735328989970,2.676,187.12,187.07,3.12]
[1735328990176,7.90223758,187.13,187.07,3.12]
[1735328991178,2.6762,187.11,187.07,3.12]
[1735328992775,2.6764,187.09,187.07,3.12]
[1735328992977,7.90223758,187.11,187.07,3.12]
[1735328994578,2.6765,187.08,187.07,3.12]
[1735328995480,2.6763,187.09,187.07,3.12]
[1735328996982,2.6765,187.08,187.07,3.12]
[1735328998486,7.90223758,187.09,187.02,7.90223758]
[1735328998686,7.90223758,187.09,187.04,7.90223758]
[1735328998875,1.6562,187.15,187.04,7.90223758]
[1735328999080,2.6765,187.09,187.04,10.57923758]
[1735328999279,2.6765,187.09,187.06,7.90223758]
[1735328999578,2.6762,187.1,187.06,7.90223758]
[1735328999979,1.6562,187.15,187.08,7.90223758]
[1735329000178,2.6759,187.12,187.09,3.12]
[1735329000575,7.90223758,187.16,187.09,3.12]
[1735329000776,2.6761,187.11,187.09,3.12]
[1735329001084,7.90223758,187.16,187.09,3.12]
[1735329001387,2.6756,187.15,187.1,7.90223758]
[1735329001688,7.90223758,187.16,187.1,7.90223758]
[1735329002579,2.676,187.12,187.1,7.90223758]
[1735329003484,7.90223758,187.12,187.06,1.5552]
[1735329003690,3.12,187.19,187.1,3.12]
[1735329003891,0.8746935,187.18,187.1,3.12]
[1735329004296,2.6768,187.06,187.04,7.90223758]
[1735329004488,7.90223758,187.08,187.05,3.12]
[1735329005189,7.90223758,187.08,187.0,1.6601]
[1735329005384,7.90223758,187.08,187.04,3.12]
[1735329006295,2.6771,187.04,187.01,7.90223758]
[1735329006490,2.6771,187.04,187.02,3.12]
[1735329007295,7.90223758,187.08,187.02,3.12]
[1735329007594,7.90223758,187.08,187.03,7.90223758]
[1735329007993,2.6769,187.05,187.03,7.90223758]
[1735329008590,7.90223758,187.08,187.03,7.90223758]
[1735329008795,2.6772,187.03,187.02,3.12]
[1735329009093,2.6772,187.03,187.01,7.90223758]
[1735329009286,2.6772,187.03,187.02,3.12]
[1735329009489,2.6773,187.02,187.01,7.90223758]
[1735329009786,2.6773,187.02,187.01,11.02223758]
[1735329009989,1.6583,187.13,187.01,11.02223758]
[1735329010190,7.90223758,187.08,187.01,11.02223758]
[1735329010695,7.90223758,187.08,187.01,7.90223758]
[1735329010894,2.6769,187.05,187.02,3.12]
[1735329011094,1.6583,187.13,187.02,3.12]
[1735329011095,1.6583,187.13,187.03,7.90223758]
[1735329011299,7.90223758,187.1,187.03,7.90223758]
[1735329011501,2.677,187.05,187.03,7.90223758]
[1735329011697,7.90223758,187.08,187.02,3.12]
[1735329011892,7.90223758,187.06,187.02,3.12]
[1735329013506,2.6772,187.03,187.02,3.12]
[1735329014301,7.90223758,187.04,186.96,57.2059]
[1735329014505,7.90223758,187.0,186.97,3.12]
[1735329014905,7.90223758,187.02,186.97,3.12]
[1735329015102,7.90223758,187.03,186.98,7.90223758]
[1735329015907,2.6773,187.03,186.98,7.90223758]
[1735329016905,2.6774,187.02,186.98,7.90223758]
[1735329017900,2.6776,187.0,186.98,7.90223758]
[1735329018405,2.6778,186.99,186.96,55.6]
[1735329018601,7.90223758,187.01,186.97,3.12]
[1735329019208,2.6779,186.98,186.97,3.12]
[1735329019408,2.6779,186.98,186.96,55.6]
[1735329019609,2.6779,186.98,186.97,3.12]
[1735329020509,2.6777,187.0,186.97,11.02223758]
[1735329020909,2.6778,186.99,186.97,11.02223758]
[1735329022504,7.90223758,187.03,186.97,11.02223758]
[1735329022505,2.6776,187.01,186.97,11.02223758]
[1735329023313,2.6777,187.0,186.97,11.02223758]
[1735329027212,2.6778,186.99,186.97,11.02223758]
[1735329029017,7.90223758,187.03,186.97,3.12]
[1735329029218,7.90223758,187.01,186.94,7.90223758]
[1735329029422,7.90223758,187.01,186.98,3.12]
[1735329029625,7.90223758,186.99,186.89,2.6791]
[1735329029822,7.90223758,186.97,186.94,3.12]
[1735329030217,7.90223758,186.97,186.88,2.6792]
[1735329030421,7.90223758,186.97,186.92,3.12]
[1735329031118,2.6783,186.96,186.92,3.12]
[1735329031323,7.90223758,186.97,186.9,10.58113758]
[1735329031517,7.90223758,186.97,186.93,3.12]
[1735329032419,2.6785,186.94,186.93,3.12]
[1735329033422,2.6785,186.94,186.85,1.563]
[1735329033423,2.6793,186.89,186.83,2.68]
[1735329033619,7.90223758,186.91,186.85,3.12]
[1735329033815,7.90223758,186.89,186.86,3.12]
[1735329034121,7.90223758,186.89,186.83,7.90223758]
[1735329034628,7.90223758,186.89,186.84,3.12]
[1735329034823,7.90223758,186.89,186.83,7.90223758]
[1735329035124,7.90223758,186.89,186.84,3.12]
[1735329035325,7.90223758,186.87,186.8,6.14658272]
[1735329035526,2.68,186.84,186.81,3.12]
[1735329035925,2.68,186.84,186.82,3.12]
[1735329036825,2.6801,186.83,186.82,3.12]
[1735329038424,2.6801,186.83,186.8,14.0488203]
[1735329038624,7.90223758,186.88,186.81,3.12]
[1735329038928,7.90223758,186.88,186.82,10.58233758]
[1735329039431,2.6796,186.87,186.82,10.58233758]
[1735329039932,2.6796,186.87,186.83,3.12]
[1735329040525,7.90223758,186.91,186.84,10.58213758]
[1735329040833,7.90223758,186.91,186.84,7.90223758]
[1735329041728,10.58143758,186.89,186.84,2.6799]
[1735329042235,10.58143758,186.89,186.84,10.58213758]
[1735329044634,10.58123758,186.91,186.85,2.6798]
[1735329045536,2.6791,186.9,186.85,2.6798]
[1735329046534,7.90223758,186.91,186.83,3.12]
[1735329046734,7.90223758,186.89,186.84,3.12]
[1735329047237,2.6795,186.87,186.84,3.12]